bitfinex/quotes_BTCUSD_20240602
["timestamp","ask_amount","ask_price","bid_price","bid_amount"]
[1717363978932,0.07715613,67834.0,67833.0,0.7178126]
[1717363980106,0.07715613,67834.0,67833.0,0.65158426]
[1717363981987,0.00155613,67834.0,67833.0,0.65158426]
[1717363982525,0.00155613,67834.0,67833.0,0.7178126]
[1717363982743,0.00155613,67834.0,67833.0,1.02369268]
[1717363983122,0.00155613,67834.0,67833.0,0.7178126]
[1717363985233,0.00155613,67834.0,67833.0,0.95746092]
[1717363985492,0.00155613,67834.0,67833.0,0.91476092]
[1717363985746,0.23485613,67834.0,67833.0,0.95746092]
[1717363987934,0.23055613,67834.0,67833.0,0.91476092]
[1717363988156,0.23055613,67834.0,67833.0,0.65158426]
[1717363988348,0.23055613,67834.0,67833.0,0.71779961]
[1717363988564,0.23055613,67834.0,67833.0,0.65158426]
[1717363988805,0.23055613,67834.0,67833.0,0.71779961]
[1717363989014,0.23055613,67834.0,67833.0,0.65158426]
[1717363989223,0.23055613,67834.0,67833.0,1.02367588]
[1717363989393,0.23055613,67834.0,67833.0,0.71780011]
[1717363990001,0.23055613,67834.0,67833.0,0.65158426]
[1717363991421,0.23055613,67834.0,67833.0,0.69572917]
[1717363991636,0.23055613,67834.0,67833.0,0.65158426]
[1717363992877,0.23055613,67834.0,67833.0,0.6957285]
[1717363993518,0.00155613,67834.0,67833.0,0.6957285]
[1717363994270,0.00155613,67834.0,67833.0,0.65158426]
[1717363998083,0.00155613,67834.0,67833.0,0.69572646]
[1717364000629,0.00155613,67834.0,67833.0,0.65158426]
[1717364000905,0.00155613,67834.0,67833.0,0.69572646]
[1717364006404,0.00155613,67834.0,67833.0,0.65158426]
[1717364007190,0.00155613,67834.0,67833.0,0.6957185]
[1717364007708,0.00155613,67834.0,67833.0,0.69572038]
[1717364008866,0.00155613,67834.0,67833.0,0.65158426]
[1717364009291,0.00155613,67834.0,67833.0,0.69572038]
[1717364009884,0.00155613,67834.0,67833.0,0.65158426]
[1717364010228,0.00155613,67834.0,67833.0,0.69572038]
[1717364011868,0.00155613,67834.0,67833.0,0.65158426]
[1717364012227,0.00155613,67834.0,67833.0,0.69572038]
[1717364018052,0.00155613,67834.0,67833.0,0.65302038]
[1717364019418,0.00155613,67834.0,67833.0,0.60888426]
[1717364019617,0.00155613,67834.0,67833.0,0.65303121]
[1717364020055,0.24045613,67834.0,67833.0,0.65303121]
[1717364020471,0.00155613,67834.0,67833.0,0.65303121]
[1717364021308,0.00155613,67834.0,67833.0,0.60888426]
[1717364021521,0.00155613,67834.0,67833.0,0.65303623]
[1717364021945,0.00155613,67834.0,67833.0,0.60888426]
[1717364023730,0.00155613,67834.0,67833.0,0.6530379]
[1717364024134,0.00155613,67834.0,67833.0,0.60888426]
[1717364025332,0.00155613,67834.0,67833.0,0.53858916]
[1717364025535,0.00155613,67834.0,67833.0,0.65253045]
[1717364025775,0.00155613,67834.0,67833.0,0.60837786]
[1717364026470,0.24688077,67834.0,67833.0,0.37364968]
[1717364026797,0.26379899,67834.0,67833.0,0.37364968]
[1717364027067,0.30837623,67834.0,67833.0,0.37364968]
[1717364027303,0.26379899,67834.0,67833.0,0.22072391]
[1717364027538,0.26279899,67834.0,67833.0,0.18372391]
[1717364027768,0.26479899,67834.0,67833.0,0.22072391]
[1717364028240,0.26279899,67834.0,67833.0,0.14672391]
[1717364028693,0.26579899,67834.0,67833.0,0.22072391]
[1717364029123,0.26379899,67834.0,67833.0,0.18372391]
[1717364029351,0.26479899,67834.0,67833.0,0.22072391]
[1717364029576,0.26679899,67834.0,67833.0,0.25772391]
[1717364031132,0.41421699,67834.0,67833.0,0.111946]
[1717364038294,0.45831664,67834.0,67833.0,0.111946]
[1717364039312,0.45631664,67834.0,67833.0,0.074946]
[1717364039523,0.45431664,67834.0,67833.0,0.000946]
[1717364039929,0.45431664,67834.0,67833.0,0.024946]
[1717364040765,0.45631664,67834.0,67833.0,0.061946]
[1717364041171,0.45431664,67834.0,67833.0,0.024946]
[1717364041587,0.45631664,67834.0,67833.0,0.061946]
[1717364056072,0.53696992,67834.0,67833.0,0.061946]
[1717364070373,0.58119247,67834.0,67833.0,0.061946]
[1717364071355,0.53696992,67834.0,67833.0,0.061946]
[1717364072106,0.83180692,67834.0,67833.0,0.061946]
[1717364072482,0.89814075,67834.0,67833.0,0.061946]
[1717364073839,0.83180692,67834.0,67833.0,0.061946]
[1717364074294,0.89814075,67834.0,67833.0,0.061946]
[1717364076621,0.83180692,67834.0,67833.0,0.061946]
[1717364078138,0.92025203,67834.0,67833.0,0.061946]
[1717364079550,0.83180692,67834.0,67833.0,0.061946]
[1717364079963,0.920254,67834.0,67833.0,0.061946]
[1717364080366,0.83180692,67834.0,67833.0,0.061946]
[1717364082383,0.94236331,67834.0,67833.0,0.061946]
[1717364083380,0.83180692,67834.0,67833.0,0.061946]
[1717364085761,0.87450692,67834.0,67833.0,0.061946]
[1717364085975,0.83180692,67834.0,67833.0,0.061946]
[1717364086199,0.87450692,67834.0,67833.0,0.061946]
[1717364097671,0.98514014,67834.0,67833.0,0.061946]
[1717364100170,0.98508038,67834.0,67833.0,0.061946]
[1717364101011,0.87444716,67834.0,67833.0,0.061946]
[1717364101905,0.83174716,67834.0,67833.0,0.061946]
[1717364102316,0.87444716,67834.0,67833.0,0.061946]
[1717364107133,0.83174716,67834.0,67833.0,0.061946]
[1717364107361,0.87444716,67834.0,67833.0,0.061946]
[1717364108234,0.87425011,67834.0,67833.0,0.061946]
[1717364108850,0.83155011,67834.0,67833.0,0.061946]
[1717364109071,0.87425011,67834.0,67833.0,0.061946]
[1717364113453,0.71055011,67834.0,67833.0,0.061946]
[1717364113667,0.63495011,67834.0,67833.0,0.061946]
[1717364118050,0.59225011,67834.0,67833.0,0.061946]
[1717364118732,0.63495011,67834.0,67833.0,0.061946]
[1717364120615,0.76276578,67834.0,67833.0,0.061946]
[1717364120839,1.00916578,67834.0,67833.0,0.061946]
[1717364121051,1.31336919,67834.0,67833.0,0.061946]
[1717364121264,1.32500278,67834.0,67833.0,0.024946]
[1717364121479,1.53932152,67834.0,67833.0,0.024946]
[1717364121693,1.61711789,67834.0,67833.0,0.036946]
[1717364121907,1.54032152,67834.0,67833.0,0.012946]
[1717364122117,1.75945688,67834.0,67833.0,0.000946]
[1717364122386,1.64132152,67834.0,67833.0,0.000946]
[1717364122602,1.64132152,67834.0,67833.0,0.003946]
[1717364122603,2.32060868,67834.0,67833.0,0.003946]
[1717364122845,2.46997089,67834.0,67833.0,0.003946]
[1717364123074,2.33260868,67834.0,67833.0,0.006946]
[1717364123288,2.33260868,67834.0,67833.0,0.003946]
[1717364123289,2.4818762,67834.0,67833.0,0.003946]
[1717364123500,2.4938762,67834.0,67833.0,0.006946]
[1717364123926,2.4698762,67834.0,67833.0,0.003946]
[1717364124367,2.46982747,67834.0,67833.0,0.003946]
[1717364124581,2.61544568,67834.0,67833.0,0.003946]
[1717364124790,2.64544568,67834.0,67833.0,0.006946]
[1717364126329,2.79457707,67834.0,67833.0,0.006946]
[1717364127475,2.63590266,67834.0,67833.0,0.006946]
[1717364128541,2.79090266,67834.0,67833.0,0.006946]
[1717364129796,2.76090266,67834.0,67833.0,0.003946]
[1717364130144,2.79690266,67834.0,67833.0,0.004946]
[1717364130347,2.77290266,67834.0,67833.0,0.001946]
[1717364130563,1.25497686,67827.0,67826.0,6.138e-05]
[1717364130777,2.74845832,67827.0,67826.0,6.138e-05]
[1717364130990,2.88161136,67827.0,67826.0,6.138e-05]
[1717364131195,2.92431136,67827.0,67826.0,6.138e-05]
[1717364131406,2.72257704,67827.0,67826.0,6.138e-05]
[1717364131842,2.75857704,67827.0,67826.0,0.00106138]
[1717364132271,2.77193269,67827.0,67826.0,0.00106138]
[1717364132485,2.74843769,67827.0,67826.0,0.00106138]
[1717364133115,2.65205632,67827.0,67826.0,0.00106138]
[1717364137310,2.65068459,67827.0,67826.0,0.00106138]
[1717364139045,2.57159576,67827.0,67826.0,0.00106138]
[1717364139259,2.65082943,67827.0,67826.0,0.00106138]
[1717364140762,2.03659943,67827.0,67826.0,0.00106138]
[1717364141089,3.15731643,67827.0,67826.0,0.00106138]
[1717364141304,3.31231643,67827.0,67826.0,0.00106138]
[1717364141481,3.31169259,67827.0,67826.0,0.00106138]
[1717364142323,3.45749813,67827.0,67826.0,0.00106138]
[1717364142562,3.42149813,67827.0,67826.0,0.00106138]
[1717364143065,3.43997849,67827.0,67826.0,0.00306138]
[1717364143321,3.47597849,67827.0,67826.0,0.00306138]
[1717364143754,3.47697849,67827.0,67826.0,0.00606138]
[1717364144188,3.63182323,67827.0,67826.0,0.00606138]
[1717364147295,1.64492286,67824.0,67823.0,0.000946]
[1717364147501,3.74283933,67824.0,67823.0,0.000946]
[1717364150128,3.77883933,67824.0,67823.0,0.000946]
[1717364150351,3.81583933,67824.0,67823.0,0.002946]
[1717364151822,3.97543433,67824.0,67823.0,0.002946]
[1717364152512,3.97543433,67824.0,67823.0,0.18308546]
[1717364153860,3.92419333,67824.0,67823.0,0.18308546]
[1717364154498,3.945125,67824.0,67823.0,0.18308546]
[1717364155209,3.67589233,67824.0,67823.0,0.18308546]
[1717364155435,3.62632833,67824.0,67823.0,0.18308546]
[1717364156796,3.7109485,67824.0,67823.0,0.18308546]
[1717364159831,3.84318301,67824.0,67823.0,0.18308546]
[1717364160335,3.90222101,67824.0,67823.0,0.18308546]
[1717364160816,4.04802655,67824.0,67823.0,0.18308546]
[1717364161272,3.91579204,67824.0,67823.0,0.18308546]
[1717364161509,3.7699865,67824.0,67823.0,0.18308546]
[1717364162650,4.0995125,67824.0,67823.0,0.18308546]
[1717364162874,3.90205793,67824.0,67823.0,0.18308546]
[1717364163104,4.09654312,67824.0,67823.0,0.18308546]
[1717364163804,4.04995012,67824.0,67823.0,0.18308546]
[1717364164313,4.00725012,67824.0,67823.0,0.1558537]
[1717364164544,4.04995012,67824.0,67823.0,0.1388537]
[1717364165460,4.03589312,67824.0,67823.0,0.1388537]
[1717364165908,4.03589312,67824.0,67823.0,0.1108537]
[1717364166364,4.18465694,67824.0,67823.0,0.1108537]
[1717364167241,4.03589312,67824.0,67823.0,0.1108537]
[1717364167469,3.58029312,67824.0,67823.0,0.1108537]
[1717364167745,2.2397778,67824.0,67823.0,0.3419537]
[1717364167951,2.29346952,67824.0,67823.0,0.3419537]
[1717364168167,2.13859923,67824.0,67823.0,0.3419537]
[1717364168406,2.21006206,67824.0,67823.0,0.3419537]
[1717364168633,2.11006206,67824.0,67823.0,0.3419537]
[1717364168839,0.8464376,67824.0,67823.0,0.3419537]
[1717364169060,0.8464376,67824.0,67823.0,0.3428997]
[1717364169061,0.6873996,67824.0,67823.0,0.3428997]
[1717364169274,0.73407648,67824.0,67823.0,0.3428997]
[1717364169461,0.65958393,67824.0,67823.0,0.3428997]
[1717364169709,0.71097268,67824.0,67823.0,0.3428997]
[1717364169926,0.71197268,67824.0,67823.0,0.3448997]
[1717364170353,0.85467268,67824.0,67823.0,0.3448997]
[1717364170551,0.85466595,67824.0,67823.0,0.3448997]
[1717364170728,0.85466595,67824.0,67823.0,0.3428997]
[1717364170729,0.81766595,67824.0,67823.0,0.3428997]
[1717364171147,0.85466595,67824.0,67823.0,0.3448997]
[1717364171355,0.85466595,67824.0,67823.0,0.3458997]
[1717364171356,0.72405818,67824.0,67823.0,0.3458997]
[1717364171785,0.64635818,67824.0,67823.0,0.3448997]
[1717364172002,0.29566535,67824.0,67823.0,0.3448997]
[1717364172234,0.32366535,67824.0,67823.0,0.3458997]
[1717364172417,0.24247818,67824.0,67823.0,0.3438997]
[1717364172622,0.21953532,67824.0,67823.0,0.3458997]
[1717364172835,0.25553532,67824.0,67823.0,0.3458997]
[1717364173036,0.27847818,67824.0,67823.0,0.3458997]
[1717364173251,0.37847818,67824.0,67823.0,0.3458997]
[1717364175423,0.35553532,67824.0,67823.0,0.3458997]
[1717364175618,0.37847818,67824.0,67823.0,0.3458997]
[1717364178338,0.33438286,67824.0,67823.0,0.3458997]
[1717364178558,0.37840156,67824.0,67823.0,0.3458997]
[1717364179462,0.33438286,67824.0,67823.0,0.3458997]
[1717364193439,0.3783976,67824.0,67823.0,0.3458997]
[1717364203870,0.44216886,67824.0,67823.0,0.3458997]
[1717364204971,0.3783976,67824.0,67823.0,0.3458997]
[1717364205875,0.3792576,67824.0,67823.0,0.3458997]
[1717364208957,0.44312746,67824.0,67823.0,0.3458997]
[1717364210143,0.3792576,67824.0,67823.0,0.3458997]
[1717364213373,0.42334028,67824.0,67823.0,0.3458997]
[1717364214115,0.3792576,67824.0,67823.0,0.3458997]
[1717364214930,0.44557618,67824.0,67823.0,0.3458997]
[1717364216559,0.3792576,67824.0,67823.0,0.3458997]
[1717364217483,0.46742296,67824.0,67823.0,0.3458997]
[1717364219114,0.44349724,67824.0,67823.0,0.3458997]
[1717364219723,0.5319627,67824.0,67823.0,0.3458997]
[1717364220218,0.46772306,67824.0,67823.0,0.3458997]
[1717364220642,0.3792576,67824.0,67823.0,0.3458997]
[1717364223335,0.3792576,67824.0,67823.0,0.34584324]
[1717364224145,0.53197321,67824.0,67823.0,0.34584324]
[1717364225139,0.44350864,67824.0,67823.0,0.34584324]
[1717364225363,0.3792576,67824.0,67823.0,0.34584324]
[1717364229491,0.46772217,67824.0,67823.0,0.34584324]
[1717364230351,0.3792576,67824.0,67823.0,0.34584324]
[1717364234336,0.4456062,67824.0,67823.0,0.34584324]
[1717364234578,0.46772217,67824.0,67823.0,0.34584324]
[1717364235462,0.44560638,67824.0,67823.0,0.34584324]
[1717364239506,0.3792576,67824.0,67823.0,0.34584324]
[1717364240644,0.44560181,67824.0,67823.0,0.34584324]
[1717364241345,0.43560181,67824.0,67823.0,0.34584324]
[1717364241611,0.44560181,67824.0,67823.0,0.34584324]
[1717364242052,0.3792576,67824.0,67823.0,0.34584324]
[1717364242288,0.3692576,67824.0,67823.0,0.34584324]
[1717364242765,0.35631474,67824.0,67823.0,0.35314324]
[1717364243224,0.40054212,67824.0,67823.0,0.49892115]
[1717364243450,0.35631474,67824.0,67823.0,0.49892115]
[1717364243664,0.3692576,67824.0,67823.0,0.49892115]
[1717364244173,0.29231474,67824.0,67823.0,0.49592115]
[1717364244391,0.32831474,67824.0,67823.0,0.49792115]
[1717364244623,0.3412576,67824.0,67823.0,0.49792115]
[1717364245060,0.36331474,67824.0,67823.0,0.49992115]
[1717364245272,0.3762576,67824.0,67823.0,0.49992115]
[1717364245563,0.3762576,67824.0,67823.0,0.50092115]
[1717364245564,0.39135261,67824.0,67823.0,0.50092115]
[1717364245971,0.37629547,67824.0,67823.0,0.49992115]
[1717364246191,0.36335261,67824.0,67823.0,0.49992115]
[1717364246640,0.37835261,67824.0,67823.0,0.50092115]
[1717364246855,0.39129547,67824.0,67823.0,0.50092115]
[1717364248614,0.37835261,67824.0,67823.0,0.50092115]
[1717364249382,0.39129547,67824.0,67823.0,0.50092115]
[1717364249790,0.43551678,67824.0,67823.0,0.50092115]
[1717364250560,0.43552856,67824.0,67823.0,0.50092115]
[1717364250787,0.39131253,67824.0,67823.0,0.50092115]
[1717364255079,0.40131253,67824.0,67823.0,0.26252115]
[1717364255311,0.40131253,67824.0,67823.0,0.11674324]
[1717364255534,0.47761253,67824.0,67823.0,0.11674324]
[1717364255751,0.54392974,67824.0,67823.0,0.11674324]
[1717364255963,0.47761253,67824.0,67823.0,0.11674324]
[1717364263501,0.47772129,67824.0,67823.0,0.11674324]
[1717364265081,0.54404124,67824.0,67823.0,0.11674324]
[1717364265508,0.46774124,67824.0,67823.0,0.11674324]
[1717364266123,0.40142129,67824.0,67823.0,0.11674324]
[1717364270549,0.46774475,67824.0,67823.0,0.11674324]
[1717364271005,0.40142129,67824.0,67823.0,0.11674324]
[1717364281909,0.46774827,67824.0,67823.0,0.11674324]
[1717364283586,0.40142129,67824.0,67823.0,0.11674324]
[1717364284014,0.46774827,67824.0,67823.0,0.11674324]
[1717364289459,0.40142129,67824.0,67823.0,0.11674324]
[1717364290171,0.46774827,67824.0,67823.0,0.11674324]
[1717364290845,0.39690827,67824.0,67823.0,0.11674324]
[1717364291502,0.54434827,67824.0,67823.0,0.11674324]
[1717364294495,0.54854827,67824.0,67823.0,0.11674324]
[1717364299336,0.48222129,67824.0,67823.0,0.11674324]
[1717364303739,0.40142129,67824.0,67823.0,0.11674324]
[1717364308262,0.40142396,67824.0,67823.0,0.11674324]
[1717364309738,0.40112908,67824.0,67823.0,0.11674324]
[1717364315814,0.40110412,67824.0,67823.0,0.11674324]
[1717364316236,0.40110422,67824.0,67823.0,0.11674324]
[1717364316882,0.35694798,67824.0,67823.0,0.11674324]
[1717364317095,0.40110508,67824.0,67823.0,0.11674324]
[1717364317813,0.40115062,67824.0,67823.0,0.11674324]
[1717364318230,0.40115056,67824.0,67823.0,0.11674324]
[1717364321692,0.35694798,67824.0,67823.0,0.11674324]
[1717364321911,0.40115988,67824.0,67823.0,0.11674324]
[1717364327325,0.38818088,67824.0,67823.0,0.11674324]
[1717364333133,0.47664763,67824.0,67823.0,0.11674324]
[1717364333543,0.38818088,67824.0,67823.0,0.11674324]
[1717364337976,0.38818088,67824.0,67823.0,0.19454324]
[1717364348164,0.38818088,67824.0,67823.0,0.18159024]
[1717364349012,0.34396898,67824.0,67823.0,0.18159024]
[1717364349179,0.38801229,67824.0,67823.0,0.18159024]
[1717364354797,0.47649429,67824.0,67823.0,0.18159024]
[1717364356057,0.47658439,67824.0,67823.0,0.18159024]
[1717364359429,0.38806803,67824.0,67823.0,0.18159024]
[1717364359685,0.47658439,67824.0,67823.0,0.18159024]
[1717364364182,0.38806803,67824.0,67823.0,0.18159024]
[1717364364598,0.47658439,67824.0,67823.0,0.18159024]
[1717364366450,0.38806803,67824.0,67823.0,0.18159024]
[1717364367096,0.47658439,67824.0,67823.0,0.18159024]
[1717364367450,0.38806803,67824.0,67823.0,0.18159024]
[1717364367894,0.47658439,67824.0,67823.0,0.18159024]
[1717364368268,0.38806803,67824.0,67823.0,0.18159024]
[1717364372742,0.38806803,67824.0,67823.0,0.10379024]
[1717364373176,0.47658439,67824.0,67823.0,0.10379024]
[1717364373306,0.38806803,67824.0,67823.0,0.10379024]
[1717364373533,0.47658439,67824.0,67823.0,0.10379024]
[1717364374172,0.38806803,67824.0,67823.0,0.10379024]
[1717364374372,0.47658439,67824.0,67823.0,0.10379024]
[1717364374782,0.38806803,67824.0,67823.0,0.10379024]
[1717364375846,0.47658439,67824.0,67823.0,0.10379024]
[1717364376267,0.38806803,67824.0,67823.0,0.10379024]
[1717364376517,0.47658439,67824.0,67823.0,0.10379024]
[1717364379402,0.38806803,67824.0,67823.0,0.10379024]
[1717364386894,0.68501415,67824.0,67823.0,0.10379024]
[1717364387279,0.7956596,67824.0,67823.0,0.10379024]
[1717364389063,0.68538281,67824.0,67823.0,0.10379024]
[1717364389265,0.79599402,67824.0,67823.0,0.10379024]
[1717364389887,0.68538281,67824.0,67823.0,0.10379024]
[1717364390259,0.79598498,67824.0,67823.0,0.10379024]
[1717364397373,0.72808281,67824.0,67823.0,0.10379024]
[1717364397589,1.02296281,67824.0,67823.0,0.10379024]
[1717364399374,1.04039586,67824.0,67823.0,0.10379024]
[1717364400448,1.15099803,67824.0,67823.0,0.10379024]
[1717364400654,1.10829803,67824.0,67823.0,0.10379024]
[1717364400883,1.04039586,67824.0,67823.0,0.10379024]
[1717364401093,0.99769586,67824.0,67823.0,0.10379024]
[1717364401304,1.04039586,67824.0,67823.0,0.10379024]
[1717364401528,1.15094197,67824.0,67823.0,0.10379024]
[1717364405924,0.99474197,67824.0,67823.0,0.10379024]
[1717364406485,0.80689586,67824.0,67823.0,0.10379024]
[1717364406902,1.04449586,67824.0,67823.0,0.10379024]
[1717364407131,0.80689586,67824.0,67823.0,0.10379024]
[1717364413288,0.96729586,67824.0,67823.0,0.10379024]
[1717364415065,1.07784197,67824.0,67823.0,0.10379024]
[1717364415274,0.96729586,67824.0,67823.0,0.10379024]
[1717364415697,1.04429586,67824.0,67823.0,0.10379024]
[1717364416627,1.15484197,67824.0,67823.0,0.10379024]
[1717364417038,1.04429586,67824.0,67823.0,0.10379024]
[1717364418118,1.15484197,67824.0,67823.0,0.10379024]
[1717364418954,1.04429586,67824.0,67823.0,0.10379024]
[1717364419130,0.88389586,67824.0,67823.0,0.10379024]
[1717364419517,0.80689586,67824.0,67823.0,0.10379024]
[1717364421267,0.76419586,67824.0,67823.0,0.10379024]
[1717364421473,0.80689586,67824.0,67823.0,0.10379024]
[1717364421687,0.91744197,67824.0,67823.0,0.10379024]
[1717364422757,0.91744197,67824.0,67823.0,0.18669024]
[1717364425197,0.91744197,67824.0,67823.0,0.10379024]
[1717364427646,0.80689586,67824.0,67823.0,0.10379024]
[1717364427842,0.9166446,67824.0,67823.0,0.10379024]
[1717364428061,0.80608548,67824.0,67823.0,0.10379024]
[1717364428543,0.91665059,67824.0,67823.0,0.10379024]
[1717364428755,0.80608548,67824.0,67823.0,0.10379024]
[1717364428955,0.91665109,67824.0,67823.0,0.10379024]
[1717364429207,0.80608548,67824.0,67823.0,0.10379024]
[1717364430745,0.79315848,67824.0,67823.0,0.10379024]
[1717364435866,1.02235848,67824.0,67823.0,0.10379024]
[1717364438897,1.08609111,67824.0,67823.0,0.10379024]
[1717364440220,1.11390206,67824.0,67823.0,0.10379024]
[1717364441331,1.07120206,67824.0,67823.0,0.10379024]
[1717364441555,1.08609111,67824.0,67823.0,0.10379024]
[1717364442653,1.08602249,67824.0,67823.0,0.10379024]
[1717364452773,1.08602249,67824.0,67823.0,0.09088924]
[1717364453891,1.11383296,67824.0,67823.0,0.09088924]
[1717364454305,1.08602249,67824.0,67823.0,0.09088924]
[1717364455407,1.00982249,67824.0,67823.0,0.09088924]
[1717364455594,1.84369083,67824.0,67823.0,0.09088924]
[1717364455762,1.97078983,67824.0,67823.0,0.09088924]
[1717364455968,2.08087822,67824.0,67823.0,0.09088924]
[1717364456173,2.20120552,67824.0,67823.0,0.09088924]
[1717364456373,2.00987822,67824.0,67823.0,0.08688924]
[1717364456576,2.13020552,67824.0,67823.0,0.08988924]
[1717364456921,2.16720552,67824.0,67823.0,0.08988924]
[1717364457155,2.04687822,67824.0,67823.0,0.08988924]
[1717364457362,2.00128978,67824.0,67823.0,0.08888924]
[1717364457608,2.13728978,67824.0,67823.0,0.08888924]
[1717364461515,2.29700578,67824.0,67823.0,0.08888924]
[1717364461729,2.13728978,67824.0,67823.0,0.08888924]
[1717364462392,2.2698916,67824.0,67823.0,0.08888924]
[1717364462884,2.16393665,67824.0,67823.0,0.08888924]
[1717364464316,2.45881665,67824.0,67823.0,0.08888924]
[1717364464531,2.52747343,67824.0,67823.0,0.08888924]
[1717364464726,2.64555659,67824.0,67823.0,0.08888924]
[1717364464915,2.44429799,67824.0,67823.0,0.08888924]
[1717364465719,1.33173986,67823.0,67822.0,0.000946]
[1717364465934,2.74007482,67823.0,67822.0,0.000946]
[1717364467017,2.77607482,67823.0,67822.0,0.000946]
[1717364467190,2.77607482,67823.0,67822.0,0.001946]
[1717364467396,2.81207482,67823.0,67822.0,0.001946]
[1717364467613,1.25506786,67821.0,67820.0,0.001]
[1717364467864,2.36404282,67821.0,67820.0,0.001]
[1717364469459,2.36396537,67821.0,67820.0,0.001]
[1717364470261,2.39996537,67821.0,67820.0,0.001]
[1717364470681,2.43596537,67821.0,67820.0,0.001]
[1717364471313,2.39996537,67821.0,67820.0,0.001]
[1717364471515,2.36396537,67821.0,67820.0,0.001]
[1717364471719,2.39996537,67821.0,67820.0,0.001]
[1717364471918,2.43596537,67821.0,67820.0,0.001]
[1717364474756,2.45896537,67821.0,67820.0,0.001]
[1717364476375,3.19951737,67821.0,67820.0,0.001]
[1717364476585,3.16351737,67821.0,67820.0,0.001]
[1717364476939,3.19951737,67821.0,67820.0,0.001]
[1717364477145,3.23551737,67821.0,67820.0,0.001]
[1717364478159,3.22851737,67821.0,67820.0,0.001]
[1717364479892,3.21564237,67821.0,67820.0,0.001]
[1717364480665,1.23802241,67819.0,67818.0,0.0099359]
[1717364480971,2.90647237,67819.0,67818.0,0.0099359]
[1717364481193,2.90647237,67819.0,67811.0,0.009427]
[1717364481194,1.42808541,67815.0,67811.0,0.009427]
[1717364481437,2.58021321,67815.0,67811.0,0.009427]
[1717364482096,2.70089081,67815.0,67811.0,0.009427]
[1717364482798,2.68931881,67815.0,67811.0,0.009427]
[1717364483870,2.72531881,67815.0,67811.0,0.009427]
[1717364484127,2.76131881,67815.0,67811.0,0.009427]
[1717364485464,2.78431881,67815.0,67811.0,0.009427]
[1717364487232,2.37051881,67815.0,67811.0,0.009427]
[1717364487463,3.20572081,67815.0,67811.0,0.009427]
[1717364487692,3.18578181,67815.0,67811.0,0.009427]
[1717364487945,3.05519595,67815.0,67811.0,0.009427]
[1717364488149,3.07113881,67815.0,67811.0,0.009427]
[1717364488360,3.17113881,67815.0,67811.0,0.009427]
[1717364488588,3.07113881,67815.0,67811.0,0.009427]
[1717364488805,2.78350781,67815.0,67811.0,0.009427]
[1717364489285,3.10186981,67815.0,67811.0,0.009427]
[1717364492086,3.25206665,67815.0,67811.0,0.009427]
[1717364493741,1.47814441,67811.0,67810.0,0.097523]
[1717364493947,2.04317781,67811.0,67810.0,0.097523]
[1717364494156,2.64345481,67811.0,67810.0,0.097523]
[1717364494335,2.63098481,67811.0,67810.0,0.097523]
[1717364494515,2.69003081,67811.0,67810.0,0.097523]
[1717364494929,0.75337286,67803.0,67802.0,0.005]
[1717364495143,1.26991823,67803.0,67802.0,0.005]
[1717364495596,1.38584992,67803.0,67802.0,0.0836]
[1717364496003,1.29770416,67803.0,67802.0,0.0836]
[1717364496464,1.85049372,67803.0,67802.0,0.0836]
[1717364496783,0.45846486,67793.0,67792.0,0.1643]
[1717364496986,0.70820793,67793.0,67792.0,0.2454]
[1717364497435,1.00322293,67793.0,67792.0,0.2454]
[1717364499027,1.03422293,67793.0,67792.0,0.246346]
[1717364499700,1.04758751,67793.0,67792.0,0.246346]
[1717364505020,1.09165787,67793.0,67792.0,0.246346]
[1717364505247,1.04758751,67793.0,67792.0,0.246346]
[1717364505862,1.03458751,67793.0,67792.0,0.246346]
[1717364506063,1.11465702,67793.0,67792.0,0.246346]
[1717364506217,1.08365702,67793.0,67792.0,0.246346]
[1717364506429,1.07558751,67793.0,67792.0,0.246346]
[1717364507064,1.11965702,67793.0,67792.0,0.246346]
[1717364508140,1.1370325,67793.0,67792.0,0.246346]
[1717364508965,0.46023299,67793.0,67792.0,0.246346]
[1717364509182,0.43285751,67793.0,67792.0,0.246346]
[1717364509386,0.33285751,67793.0,67792.0,0.246346]
[1717364509593,0.22544986,67793.0,67792.0,0.246346]
[1717364509965,0.18944986,67793.0,67792.0,0.246346]
[1717364510420,0.06613063,67808.0,67794.0,0.2454]
[1717364510421,0.04408708,67804.0,67794.0,0.2454]
[1717364510594,0.04408708,67804.0,67798.0,0.0427]
[1717364510595,0.04413211,67803.0,67798.0,0.0427]
[1717364510795,0.04413211,67803.0,67799.0,0.14577791]
[1717364510966,0.0427,67813.0,67803.0,0.1642]
[1717364511166,0.0427,67813.0,67805.0,0.1642]
[1717364511167,0.04397562,67812.0,67805.0,0.1642]
[1717364511393,0.04397562,67812.0,67807.0,0.1642]
[1717364511594,0.04397562,67812.0,67799.0,0.14577791]
[1717364511595,0.19017,67810.0,67809.0,0.1642]
[1717364511817,0.23414562,67810.0,67809.0,0.2412]
[1717364512144,0.33414562,67810.0,67809.0,0.2412]
[1717364512767,0.33414562,67810.0,67809.0,0.2422]
[1717364512955,0.35614562,67810.0,67809.0,0.2422]
[1717364513465,0.39214562,67810.0,67809.0,0.2432]
[1717364513902,0.37014562,67810.0,67809.0,0.2422]
[1717364515322,0.38314562,67810.0,67809.0,0.2432]
[1717364516965,0.38314562,67810.0,67809.0,0.002]
[1717364517567,0.38314562,67810.0,67809.0,0.0811]
[1717364517811,0.34044562,67810.0,67809.0,0.2403]
[1717364518028,0.38314562,67810.0,67809.0,0.2403]
[1717364518800,0.33414562,67810.0,67809.0,0.2383]
[1717364519160,0.38314562,67810.0,67809.0,0.2393]
[1717364521057,0.34044562,67810.0,67809.0,0.2393]
[1717364522575,0.34027018,67810.0,67809.0,0.2393]
[1717364523882,0.29647,67810.0,67809.0,0.2393]
[1717364524938,0.34025698,67810.0,67809.0,0.2393]
[1717364526594,0.29647,67810.0,67809.0,0.2393]
[1717364530359,0.34023818,67810.0,67809.0,0.2393]
[1717364530585,0.29647,67810.0,67809.0,0.2393]
[1717364532454,0.34025556,67810.0,67809.0,0.2393]
[1717364538709,0.29647,67810.0,67809.0,0.2393]
[1717364538953,0.34027708,67810.0,67809.0,0.2393]
[1717364547114,0.24027708,67810.0,67809.0,0.2393]
[1717364550994,0.24027708,67810.0,67809.0,0.38507791]
[1717364551202,0.09280708,67810.0,67809.0,0.38507791]
[1717364551428,0.09280708,67810.0,67809.0,0.43777791]
[1717364551429,0.049,67810.0,67809.0,0.43777791]
[1717364551678,0.049,67810.0,67809.0,0.58753345]
[1717364552140,0.049,67810.0,67809.0,0.58653229]
[1717364552141,0.036,67810.0,67809.0,0.58653229]
[1717364552368,0.1,67820.0,67811.0,0.01]
[1717364552586,0.0438273,67819.0,67812.0,0.19847791]
[1717364552892,0.0438273,67819.0,67817.0,0.077]
[1717364553134,0.1,67820.0,67812.0,0.18847791]